[Event "Schack-SM 2023: Mastarklassen"]
[Site "Helsingborg Arena, Mellersta Stenbocksgatan 14, Helsingborg, Sweden"]
[Date "2023.07.09"]
[Round "9.3"]
[White "Mardell, Jimmy"]
[Black "Nygren, David"]
[Result "0-1"]
[TimeControl "90 minutes for 40 moves + 30 minutes for the rest of games + 30 seconds per move from move one."]
[WhiteElo "2160"]
[BlackElo "2157"]

1. d4 {[%clk 01:30:55]} {[%emt 00:00:04]} Nf6 {[%clk 01:30:44]} {[%emt
00:00:17]} 2. c4 {[%clk 01:31:18]} {[%emt 00:00:07]} e6 {[%clk 01:30:54]}
{[%emt 00:00:21]} 3. Nc3 {[%clk 01:31:35]} {[%emt 00:00:11]} c5 {[%clk
01:30:36]} {[%emt 00:00:49]} 4. d5 {[%clk 01:31:48]} {[%emt 00:00:17]} exd5
{[%clk 01:31:01]} {[%emt 00:00:05]} 5. cxd5 {[%clk 01:32:14]} {[%emt 00:00:04]}
d6 {[%clk 01:31:24]} {[%emt 00:00:06]} 6. e4 {[%clk 01:32:36]} {[%emt
00:00:08]} g6 {[%clk 01:31:35]} {[%emt 00:00:19]} 7. Nge2 {[%emt 00:01:19]} Bg7
{[%clk 01:31:05]} {[%emt 00:00:02]} 8. Ng3 {[%clk 01:33:09]} {[%emt 00:00:07]}
O-O {[%clk 01:29:45]} {[%emt 00:01:50]} 9. Be2 {[%clk 01:33:29]} {[%emt
00:00:10]} a6 {[%clk 01:27:01]} {[%emt 00:03:14]} 10. a4 {[%clk 01:33:43]}
{[%emt 00:00:15]} h5 {[%clk 01:26:05]} {[%emt 00:01:26]} 11. Bg5 {[%clk
01:31:47]} {[%emt 00:02:26]} Qc7 {[%clk 01:23:07]} {[%emt 00:03:29]} 12. O-O
{[%clk 01:30:17]} {[%emt 00:02:01]} Nh7 {[%clk 01:13:17]} {[%emt 00:10:19]} 13.
Be3 {[%clk 01:25:53]} {[%emt 00:04:54]} Qe7 {[%clk 01:08:14]} {[%emt 00:05:32]}
14. Qd2 {[%clk 01:18:46]} {[%emt 00:07:37]} Re8 {[%clk 01:01:46]} {[%emt
00:06:58]} 15. Bd3 {[%clk 01:04:44]} {[%emt 00:14:33]} Nd7 {[%clk 00:59:24]}
{[%emt 00:02:52]} 16. f4 {[%clk 00:57:45]} {[%emt 00:07:29]} h4 {[%clk
00:48:53]} {[%emt 00:11:01]} 17. Nh1 {[%clk 00:55:06]} {[%emt 00:03:09]} f5
{[%clk 00:48:21]} {[%emt 00:01:01]} 18. Nf2 {[%clk 00:53:10]} {[%emt 00:02:26]}
Ndf6 {[%clk 00:42:01]} {[%emt 00:06:50]} 19. e5 {[%clk 00:47:04]} {[%emt
00:06:37]} dxe5 {[%clk 00:38:08]} {[%emt 00:04:22]} 20. fxe5 {[%clk 00:45:49]}
{[%emt 00:01:45]} Qxe5 {[%clk 00:36:34]} {[%emt 00:02:04]} 21. Bxc5 {[%clk
00:44:41]} {[%emt 00:01:39]} Qc7 {[%clk 00:35:55]} {[%emt 00:01:09]} 22. Be3
{[%clk 00:42:18]} {[%emt 00:02:52]} Bd7 {[%clk 00:32:47]} {[%emt 00:03:39]} 23.
Be2 {[%clk 00:29:55]} {[%emt 00:12:52]} Bf8 {[%clk 00:28:55]} {[%emt 00:04:22]}
24. Rac1 {[%clk 00:27:50]} {[%emt 00:02:35]} Bd6 {[%clk 00:25:28]} {[%emt
00:03:58]} 25. Nd3 {[%clk 00:21:24]} {[%emt 00:06:56]} Bxh2+ {[%clk 00:20:25]}
{[%emt 00:05:33]} 26. Kh1 {[%clk 00:21:52]} Bg3 {[%clk 00:18:20]} {[%emt
00:02:35]} 27. Bd4 {[%clk 00:12:04]} {[%emt 00:10:19]} Qd6 {[%clk 00:13:54]}
{[%emt 00:04:56]} 28. Bc5 {[%clk 00:09:44]} {[%emt 00:02:50]} Qb8 {[%clk
00:12:49]} {[%emt 00:01:35]} 29. Qh6 {[%clk 00:09:40]} {[%emt 00:00:33]} Kf7
{[%clk 00:10:06]} {[%emt 00:03:13]} 30. Nf4 {[%clk 00:03:57]} {[%emt 00:06:13]}
Bxf4 {[%clk 00:08:16]} {[%emt 00:02:21]} 31. Rxf4 {[%clk 00:04:26]} {[%emt
00:00:01]} Rh8 {[%clk 00:06:31]} {[%emt 00:02:15]} 32. Rff1 {[%clk 00:02:25]}
{[%emt 00:02:30]} h3 {[%clk 00:05:35]} {[%emt 00:01:26]} 33. d6 {[%clk
00:01:48]} {[%emt 00:01:07]} b5 {[%clk 00:05:10]} {[%emt 00:00:56]} 34. Bf3
{[%clk 00:01:51]} {[%emt 00:00:26]} Qc8 {[%clk 00:04:07]} {[%emt 00:01:33]} 35.
Rfe1 {[%clk 00:01:36]} {[%emt 00:00:46]} hxg2+ {[%clk 00:03:25]} {[%emt
00:01:11]} 36. Kxg2 {[%clk 00:01:56]} {[%emt 00:00:11]} Re8 {[%clk 00:03:03]}
{[%emt 00:00:52]} 37. Bd5+ {[%clk 00:00:50]} {[%emt 00:01:36]} Be6 {[%clk
00:03:17]} {[%emt 00:00:16]} 38. Rxe6 {[%clk 00:01:01]} {[%emt 00:00:19]} Rxe6
{[%clk 00:03:21]} {[%emt 00:00:25]} 39. Re1 {[%clk 00:00:54]} {[%emt 00:00:37]}
Nf8 {[%clk 00:01:20]} {[%emt 00:02:32]} 40. Bxe6+ {[%clk 00:00:36]} {[%emt
00:00:49]} Nxe6 {[%clk 00:01:16]} {[%emt 00:00:33]} 41. b4 {[%clk 00:14:47]}
{[%emt 00:16:18]} Qc6+ {[%clk 00:28:03]} {[%emt 00:03:43]} 42. Kg1 {[%clk
00:15:10]} {[%emt 00:00:07]} bxa4 {[%clk 00:26:22]} {[%emt 00:02:12]} 43. Rxe6
{[%clk 00:10:32]} {[%emt 00:05:08]} Kxe6 {[%clk 00:26:25]} {[%emt 00:00:26]} 44.
Qe3+ {[%clk 00:07:55]} {[%emt 00:03:07]} Ne4 {[%clk 00:26:40]} {[%emt
00:00:15]} 45. Ne2 {[%clk 00:08:15]} {[%emt 00:00:11]} Kf7 {[%clk 00:24:31]}
{[%emt 00:02:38]} 46. Qd3 {[%clk 00:05:11]} {[%emt 00:03:35]} Nxc5 {[%clk
00:22:01]} {[%emt 00:03:00]} 47. Qc4+ {[%clk 00:05:38]} {[%emt 00:00:02]} Kf8
{[%clk 00:21:57]} {[%emt 00:00:33]} 48. bxc5 {[%clk 00:04:17]} {[%emt
00:01:53]} Rc8 {[%clk 00:21:06]} {[%emt 00:01:20]} 49. d7 {[%clk 00:03:12]}
{[%emt 00:01:36]} Qxd7 {[%clk 00:20:01]} {[%emt 00:01:34]} 50. Nd4 {[%clk
00:03:34]} {[%emt 00:00:08]} a3 {[%clk 00:18:53]} {[%emt 00:01:38]} 51. c6
{[%clk 00:02:55]} {[%emt 00:01:09]} Qd6 {[%clk 00:18:49]} {[%emt 00:00:34]} 52.
c7 {[%clk 00:00:54]} {[%emt 00:02:32]} a2 {[%clk 00:17:45]} {[%emt 00:01:34]}
0-1

[ePGN "0.1;DGT LiveChess/2.2.5"]

[Event "Schack-SM 2023: Junior-SM"]
[Site "Helsingborg Arena, Mellersta Stenbocksgatan 14, Helsingborg, Sweden"]
[Date "2023.07.09"]
[Round "9.1"]
[White "Seo, Jung Hyun"]
[Black "Wernberg, Hugo"]
[Result "1-0"]
[TimeControl "90 minutes for 40 moves + 30 minutes for the rest of the game + 30 seconds per move from move one."]
[BlackTitle "FM"]
[WhiteElo "2124"]
[BlackElo "2217"]

1. e4 {[%clk 01:30:57]} {[%emt 00:00:02]} e5 {[%clk 01:30:51]} {[%emt
00:00:10]} 2. Nf3 {[%clk 01:31:24]} {[%emt 00:00:02]} Nc6 {[%clk 01:31:14]}
{[%emt 00:00:07]} 3. d4 {[%clk 01:31:53]} {[%emt 00:00:01]} exd4 {[%clk
01:31:36]} {[%emt 00:00:08]} 4. Nxd4 {[%clk 01:32:21]} {[%emt 00:00:02]} Nf6
{[%clk 01:31:56]} {[%emt 00:00:10]} 5. Nxc6 {[%clk 01:32:50]} {[%emt 00:00:01]}
bxc6 {[%clk 01:32:17]} {[%emt 00:00:09]} 6. e5 {[%clk 01:33:19]} {[%emt
00:00:01]} Qe7 {[%clk 01:32:38]} {[%emt 00:00:09]} 7. Qe2 {[%clk 01:33:46]}
{[%emt 00:00:03]} Nd5 {[%clk 01:32:59]} {[%emt 00:00:09]} 8. c4 {[%clk
01:34:13]} {[%emt 00:00:03]} Ba6 {[%clk 01:33:09]} {[%emt 00:00:21]} 9. b3
{[%clk 01:34:30]} {[%emt 00:00:12]} g6 {[%clk 01:33:27]} {[%emt 00:00:12]} 10.
Ba3 {[%clk 01:34:58]} {[%emt 00:00:03]} Nb4 {[%clk 01:33:50]} {[%emt 00:00:07]}
11. Bb2 {[%clk 01:35:24]} {[%emt 00:00:04]} Bg7 {[%clk 01:33:54]} {[%emt
00:00:26]} 12. a3 {[%clk 01:35:50]} {[%emt 00:00:04]} Nd5 {[%clk 01:34:08]}
{[%emt 00:00:15]} 13. Nd2 {[%clk 01:36:17]} {[%emt 00:00:03]} O-O {[%clk
01:32:44]} {[%emt 00:01:54]} 14. O-O-O {[%clk 01:28:24]} {[%emt 00:08:22]} Rfe8
{[%clk 01:27:36]} {[%emt 00:05:39]} 15. Re1 {[%clk 01:26:32]} {[%emt 00:02:22]}
Nb6 {[%clk 01:22:38]} {[%emt 00:05:28]} 16. f4 {[%clk 01:22:43]} {[%emt
00:04:19]} d6 {[%clk 01:17:56]} {[%emt 00:05:13]} 17. h4 {[%clk 01:18:46]}
{[%emt 00:04:26]} dxe5 {[%clk 01:15:04]} {[%emt 00:03:22]} 18. fxe5 {[%clk
01:19:03]} {[%emt 00:00:13]} Nd7 {[%clk 01:00:28]} {[%emt 00:15:06]} 19. Nf3
{[%clk 01:17:59]} {[%emt 00:01:35]} c5 {[%clk 00:53:18]} {[%emt 00:07:41]} 20.
Qc2 {[%clk 01:06:36]} {[%emt 00:11:53]} Bb7 {[%clk 00:44:59]} {[%emt 00:08:49]}
21. Kb1 {[%clk 00:54:28]} {[%emt 00:12:38]} Qf8 {[%clk 00:28:56]} {[%emt
00:16:33]} 22. Bd3 {[%clk 00:52:39]} {[%emt 00:02:19]} Bxf3 {[%clk 00:26:38]}
{[%emt 00:02:48]} 23. gxf3 {[%clk 00:52:55]} {[%emt 00:00:14]} Bxe5 {[%clk
00:24:46]} {[%emt 00:02:21]} 24. Be4 {[%clk 00:43:31]} {[%emt 00:09:54]} Rad8
{[%clk 00:21:28]} {[%emt 00:03:48]} 25. Bc1 {[%clk 00:39:25]} {[%emt 00:04:36]}
Bh8 {[%clk 00:18:30]} {[%emt 00:03:28]} 26. h5 {[%clk 00:33:52]} {[%emt
00:06:02]} Qg7 {[%clk 00:18:04]} {[%emt 00:00:56]} 27. Qa2 {[%clk 00:34:00]}
{[%emt 00:00:22]} Nb6 {[%clk 00:11:13]} {[%emt 00:07:20]} 28. hxg6 {[%clk
00:33:28]} {[%emt 00:01:02]} fxg6 {[%clk 00:10:15]} {[%emt 00:01:29]} 29. Re2
{[%clk 00:32:40]} {[%emt 00:01:17]} Re7 {[%clk 00:02:40]} {[%emt 00:08:05]} 30.
Bg5 {[%clk 00:26:05]} {[%emt 00:07:05]} Na4 {[%clk 00:00:38]} {[%emt 00:02:33]}
31. bxa4 {[%clk 00:25:29]} {[%emt 00:01:06]} Rxe4 {[%clk 00:00:32]} {[%emt
00:00:35]} 32. fxe4 {[%clk 00:24:18]} {[%emt 00:01:41]} Rb8+ {[%clk 00:00:52]}
{[%emt 00:00:11]} 33. Kc1 {[%clk 00:24:30]} {[%emt 00:00:14]} Qc3+ {[%clk
00:01:16]} {[%emt 00:00:09]} 34. Rc2 {[%clk 00:23:28]} {[%emt 00:01:32]} Qg3
{[%clk 00:01:04]} {[%emt 00:00:42]} 35. Bh6 {[%clk 00:21:40]} {[%emt 00:02:15]}
Qf3 {[%clk 00:01:15]} {[%emt 00:00:21]} 36. Rd1 {[%clk 00:21:40]} {[%emt
00:00:25]} Rb3 {[%clk 00:01:14]} {[%emt 00:00:36]} 37. Rd8+ {[%clk 00:22:07]}
{[%emt 00:00:04]} 1-0

[Event "Schack-SM 2023: Mastarklassen"]
[Site "Helsingborg Arena, Mellersta Stenbocksgatan 14, Helsingborg, Sweden"]
[Date "2023.07.09"]
[Round "9.4"]
[White "Joensson, Jacob"]
[Black "Jogstad, Daniel"]
[Result "1/2-1/2"]
[TimeControl "90 minutes for 40 moves + 30 minutes for the rest of games + 30 seconds per move from move one."]
[BlackTitle "CM"]
[WhiteElo "2039"]
[BlackElo "2131"]

1. d4 {[%clk 01:30:58]} {[%emt 00:00:02]} d5 {[%clk 01:26:32]} {[%emt
00:04:29]} 2. c4 {[%clk 01:31:21]} {[%emt 00:00:06]} c6 {[%clk 01:26:32]}
{[%emt 00:00:30]} 3. Nf3 {[%clk 01:31:46]} {[%emt 00:00:05]} Nf6 {[%clk
01:26:37]} {[%emt 00:00:25]} 4. Nc3 {[%clk 01:32:11]} {[%emt 00:00:04]} e6
{[%clk 01:27:02]} {[%emt 00:00:06]} 5. Bg5 {[%clk 01:32:36]} {[%emt 00:00:04]}
Nbd7 {[%clk 01:27:29]} {[%emt 00:00:03]} 6. e3 {[%clk 01:32:57]} {[%emt
00:00:10]} Qa5 {[%clk 01:27:06]} {[%emt 00:00:53]} 7. cxd5 {[%clk 01:31:36]}
{[%emt 00:01:50]} Nxd5 {[%clk 01:27:28]} {[%emt 00:00:08]} 8. Rc1 {[%clk
01:31:53]} {[%emt 00:00:13]} Nxc3 {[%clk 01:27:52]} {[%emt 00:00:07]} 9. bxc3
{[%clk 01:32:16]} {[%emt 00:00:07]} Ba3 {[%clk 01:28:11]} {[%emt 00:00:11]} 10.
Rc2 {[%clk 01:32:08]} {[%emt 00:00:38]} b6 {[%clk 01:28:36]} {[%emt 00:00:05]}
11. Bd3 {[%clk 01:29:40]} {[%emt 00:02:57]} Ba6 {[%clk 01:28:57]} {[%emt
00:00:10]} 12. O-O {[%clk 01:29:07]} {[%emt 00:01:02]} Bxd3 {[%clk 01:29:22]}
{[%emt 00:00:05]} 13. Qxd3 {[%clk 01:29:32]} {[%emt 00:00:05]} O-O {[%clk
01:29:44]} {[%emt 00:00:08]} 14. Rb1 {[%clk 01:04:01]} {[%emt 00:26:01]} Rfe8
{[%clk 01:25:42]} {[%emt 00:04:33]} 15. e4 {[%clk 00:56:04]} {[%emt 00:08:27]}
e5 {[%clk 01:20:50]} {[%emt 00:05:22]} 16. Bd2 {[%clk 00:44:25]} {[%emt
00:12:08]} Bf8 {[%clk 01:18:07]} {[%emt 00:03:14]} 17. Qc4 {[%clk 00:38:21]}
{[%emt 00:06:33]} Rac8 {[%clk 01:05:21]} {[%emt 00:13:17]} 18. Qb3 {[%clk
00:31:23]} {[%emt 00:07:27]} Qa6 {[%clk 00:59:17]} {[%emt 00:06:35]} 19. Ng5
{[%clk 00:29:29]} {[%emt 00:02:24]} Re7 {[%clk 00:59:00]} {[%emt 00:00:46]} 20.
f4 {[%clk 00:28:44]} {[%emt 00:01:15]} c5 {[%clk 00:28:44]} {[%emt 00:30:47]}
21. dxe5 {[%clk 00:26:40]} {[%emt 00:02:33]} h6 {[%clk 00:27:41]} {[%emt
00:01:33]} 22. Nf3 {[%clk 00:24:54]} {[%emt 00:02:16]} c4 {[%clk 00:26:46]}
{[%emt 00:01:25]} 23. Qb5 {[%clk 00:24:15]} {[%emt 00:01:08]} Qxb5 {[%clk
00:26:39]} {[%emt 00:00:39]} 24. Rxb5 {[%clk 00:24:39]} {[%emt 00:00:06]} Nc5
{[%clk 00:27:04]} {[%emt 00:00:05]} 25. Be3 {[%clk 00:22:05]} {[%emt 00:03:03]}
Nxe4 {[%clk 00:27:17]} {[%emt 00:00:17]} 26. a4 {[%clk 00:20:28]} {[%emt
00:02:07]} Rd7 {[%clk 00:26:34]} {[%emt 00:01:14]} 27. Bd4 {[%clk 00:18:45]}
{[%emt 00:02:12]} Bc5 {[%clk 00:25:57]} {[%emt 00:01:07]} 28. Kf1 {[%clk
00:15:10]} {[%emt 00:04:04]} g5 {[%clk 00:23:44]} {[%emt 00:02:44]} 29. fxg5
{[%clk 00:08:06]} {[%emt 00:07:34]} Nxg5 {[%clk 00:24:10]} {[%emt 00:00:05]} 30.
Nxg5 {[%clk 00:08:00]} {[%emt 00:00:35]} hxg5 {[%clk 00:23:55]} {[%emt
00:00:45]} 31. Ke2 {[%clk 00:03:14]} {[%emt 00:05:16]} Bxd4 {[%clk 00:24:03]}
{[%emt 00:00:23]} 32. Rd2 {[%clk 00:03:21]} {[%emt 00:00:22]} a6 {[%clk
00:10:42]} {[%emt 00:13:51]} 33. Rb1 {[%clk 00:02:58]} {[%emt 00:00:53]} Rcd8
{[%clk 00:05:19]} {[%emt 00:05:53]} 34. Rxd4 {[%clk 00:03:03]} {[%emt
00:00:26]} Rxd4 {[%clk 00:05:42]} {[%emt 00:00:07]} 35. cxd4 {[%clk 00:03:29]}
{[%emt 00:00:04]} Rxd4 {[%clk 00:05:43]} {[%emt 00:00:28]} 36. Rxb6 {[%clk
00:03:48]} {[%emt 00:00:11]} c3 {[%clk 00:03:11]} {[%emt 00:03:02]} 37. Rxa6
{[%clk 00:03:50]} {[%emt 00:00:28]} c2 {[%clk 00:03:34]} {[%emt 00:00:07]} 38.
Rc6 {[%clk 00:04:15]} {[%emt 00:00:05]} Rxa4 {[%clk 00:04:00]} {[%emt
00:00:05]} 39. Rxc2 {[%clk 00:04:40]} {[%emt 00:00:05]} Re4+ {[%clk 00:04:22]}
{[%emt 00:00:08]} 40. Kf3 {[%clk 00:04:57]} {[%emt 00:00:11]} 1/2-1/2

[Event "Schack-SM 2023: Junior-SM"]
[Site "Helsingborg Arena, Mellersta Stenbocksgatan 14, Helsingborg, Sweden"]
[Date "2023.07.09"]
[Round "9.2"]
[White "Joensson, Oscar"]
[Black "Ostlund, Joar"]
[Result "0-1"]
[TimeControl "90 minutes for 40 moves + 30 minutes for the rest of the game + 30 seconds per move from move one."]
[BlackTitle "CM"]
[WhiteElo "2077"]
[BlackElo "2265"]

1. d4 {[%clk 01:30:58]} Nf6 {[%clk 01:30:54]} {[%emt 00:00:06]} 2. c4 {[%clk
01:31:25]} {[%emt 00:00:04]} e6 {[%clk 01:31:19]} {[%emt 00:00:05]} 3. g3
{[%clk 01:31:51]} {[%emt 00:00:04]} Bb4+ {[%clk 01:31:42]} {[%emt 00:00:07]} 4.
Bd2 {[%clk 01:32:15]} {[%emt 00:00:07]} Be7 {[%clk 01:32:06]} {[%emt 00:00:06]}
5. Bg2 {[%clk 01:32:37]} {[%emt 00:00:08]} d5 {[%clk 01:32:27]} {[%emt
00:00:08]} 6. Nf3 {[%clk 01:32:57]} {[%emt 00:00:10]} O-O {[%clk 01:32:49]}
{[%emt 00:00:08]} 7. O-O {[%clk 01:33:19]} {[%emt 00:00:08]} c6 {[%clk
01:33:11]} {[%emt 00:00:08]} 8. Qc2 {[%clk 01:33:09]} {[%emt 00:00:40]} Nbd7
{[%clk 01:33:30]} {[%emt 00:00:10]} 9. b3 {[%clk 01:30:27]} {[%emt 00:03:12]}
a5 {[%clk 01:31:18]} {[%emt 00:02:43]} 10. Nc3 {[%clk 01:28:28]} {[%emt
00:02:30]} b6 {[%clk 01:15:34]} {[%emt 00:16:13]} 11. e4 {[%clk 01:22:47]}
{[%emt 00:06:11]} dxe4 {[%clk 01:14:13]} {[%emt 00:01:51]} 12. Nxe4 {[%clk
01:20:19]} {[%emt 00:02:58]} Bb7 {[%clk 01:14:09]} {[%emt 00:00:34]} 13. Ne5
{[%clk 01:10:43]} {[%emt 00:10:05]} Nxe5 {[%clk 01:10:38]} {[%emt 00:04:01]} 14.
dxe5 {[%clk 01:11:08]} {[%emt 00:00:06]} Nxe4 {[%clk 01:10:59]} {[%emt
00:00:09]} 15. Bxe4 {[%clk 01:11:31]} {[%emt 00:00:06]} h6 {[%clk 01:10:11]}
{[%emt 00:01:18]} 16. Be3 {[%clk 01:06:14]} {[%emt 00:05:47]} Qc7 {[%clk
01:03:55]} {[%emt 00:06:46]} 17. c5 {[%clk 01:06:04]} {[%emt 00:00:41]} b5
{[%clk 00:46:46]} {[%emt 00:17:40]} 18. f4 {[%clk 00:58:22]} {[%emt 00:08:12]}
b4 {[%clk 00:46:57]} {[%emt 00:00:19]} 19. a3 {[%clk 00:56:27]} {[%emt
00:02:24]} Ba6 {[%clk 00:43:53]} {[%emt 00:03:34]} 20. Rfd1 {[%clk 00:48:17]}
{[%emt 00:08:40]} bxa3 {[%clk 00:44:05]} {[%emt 00:00:18]} 21. Rxa3 {[%clk
00:48:14]} {[%emt 00:00:34]} Bb5 {[%clk 00:43:26]} {[%emt 00:01:09]} 22. Rda1
{[%clk 00:48:10]} {[%emt 00:00:34]} f6 {[%clk 00:25:19]} {[%emt 00:18:36]} 23.
Qc3 {[%clk 00:30:10]} {[%emt 00:18:30]} fxe5 {[%clk 00:24:50]} {[%emt
00:00:59]} 24. fxe5 {[%clk 00:28:50]} {[%emt 00:01:50]} Bd8 {[%clk 00:24:03]}
{[%emt 00:01:18]} 25. Qd4 {[%clk 00:23:39]} {[%emt 00:05:41]} Qf7 {[%clk
00:22:37]} {[%emt 00:01:55]} 26. R3a2 {[%clk 00:21:32]} {[%emt 00:02:38]} Bc7
{[%clk 00:21:45]} {[%emt 00:01:21]} 27. Rf2 {[%clk 00:17:56]} {[%emt 00:04:07]}
Qe7 {[%clk 00:13:42]} {[%emt 00:08:33]} 28. Bc2 {[%clk 00:16:31]} {[%emt
00:01:55]} Rxf2 {[%clk 00:11:54]} {[%emt 00:02:18]} 29. Kxf2 {[%clk 00:15:16]}
{[%emt 00:01:45]} Qf7+ {[%clk 00:10:14]} {[%emt 00:02:10]} 30. Kg1 {[%clk
00:13:04]} {[%emt 00:02:42]} Qf3 {[%clk 00:09:03]} {[%emt 00:01:41]} 31. Re1
{[%clk 00:05:59]} {[%emt 00:07:35]} Rf8 {[%clk 00:01:03]} {[%emt 00:08:31]} 32.
Qd7 {[%clk 00:01:58]} {[%emt 00:04:32]} Bf1 {[%clk 00:01:05]} {[%emt 00:00:27]}
33. Qd2 {[%clk 00:01:17]} {[%emt 00:01:10]} Bh3 {[%clk 00:01:20]} {[%emt
00:00:15]} 34. Qf2 {[%clk 00:01:05]} {[%emt 00:00:42]} Bxe5 {[%clk 00:00:45]}
{[%emt 00:01:06]} 35. Qxf3 {[%clk 00:01:18]} {[%emt 00:00:17]} Rxf3 {[%clk
00:01:13]} {[%emt 00:00:02]} 36. Be4 {[%clk 00:01:40]} {[%emt 00:00:08]} Rxe3
{[%clk 00:01:26]} {[%emt 00:00:16]} 37. Rxe3 {[%clk 00:02:01]} {[%emt
00:00:09]} Bd4 {[%clk 00:01:53]} {[%emt 00:00:03]} 38. Kf2 {[%clk 00:02:22]}
{[%emt 00:00:09]} Bxc5 {[%clk 00:02:12]} {[%emt 00:00:12]} 39. Bxc6 {[%clk
00:02:34]} {[%emt 00:00:18]} Bg4 {[%clk 00:01:55]} {[%emt 00:00:47]} 40. Bg2
{[%clk 00:01:19]} {[%emt 00:01:45]} Bxe3+ {[%clk 00:02:04]} {[%emt 00:00:21]}
41. Kxe3 {[%clk 00:01:35]} {[%emt 00:00:14]} Bd1 {[%clk 00:02:30]} {[%emt
00:00:04]} 0-1

[Event "Schack-SM 2023: Mastarklassen"]
[Site "Helsingborg Arena, Mellersta Stenbocksgatan 14, Helsingborg, Sweden"]
[Date "2023.07.09"]
[Round "9.5"]
[White "Frisk, Ellinor"]
[Black "Liden, Tommy"]
[Result "1-0"]
[TimeControl "90 minutes for 40 moves + 30 minutes for the rest of games + 30 seconds per move from move one."]
[WhiteTitle "WIM"]
[WhiteElo "2178"]
[BlackElo "2107"]

1. c4 {[%clk 01:30:57]} {[%emt 00:00:03]} e6 {[%clk 01:30:49]} {[%emt
00:00:12]} 2. Nc3 {[%clk 01:31:21]} {[%emt 00:00:05]} d5 {[%clk 01:31:11]}
{[%emt 00:00:08]} 3. d4 {[%clk 01:31:39]} {[%emt 00:00:12]} c6 {[%clk
01:31:36]} {[%emt 00:00:06]} 4. e3 {[%clk 01:32:02]} {[%emt 00:00:06]} f5
{[%clk 01:31:46]} {[%emt 00:00:21]} 5. Bd3 {[%clk 01:32:06]} {[%emt 00:00:25]}
Nf6 {[%clk 01:31:45]} {[%emt 00:00:32]} 6. f3 {[%clk 01:31:55]} {[%emt
00:00:41]} Bd6 {[%clk 01:28:37]} {[%emt 00:03:38]} 7. Nge2 {[%clk 01:32:20]}
{[%emt 00:00:05]} O-O {[%clk 01:28:34]} {[%emt 00:00:33]} 8. Qc2 {[%clk
01:32:43]} {[%emt 00:00:07]} Na6 {[%clk 01:22:25]} {[%emt 00:06:39]} 9. a3
{[%clk 01:32:45]} {[%emt 00:00:28]} Nc7 {[%clk 01:21:55]} {[%emt 00:01:00]} 10.
c5 {[%clk 01:22:06]} {[%emt 00:11:08]} Be7 {[%clk 01:22:00]} {[%emt 00:00:25]}
11. b4 {[%clk 01:22:31]} {[%emt 00:00:06]} Qe8 {[%clk 01:16:32]} {[%emt
00:05:58]} 12. O-O {[%clk 01:19:12]} {[%emt 00:03:49]} Bd7 {[%clk 01:10:33]}
{[%emt 00:06:28]} 13. Bd2 {[%clk 01:18:09]} {[%emt 00:01:33]} Qh5 {[%clk
01:08:53]} {[%emt 00:02:10]} 14. Nf4 {[%clk 00:54:54]} {[%emt 00:23:46]} Qh6
{[%clk 01:06:45]} {[%emt 00:02:38]} 15. e4 {[%clk 00:47:17]} {[%emt 00:08:06]}
g5 {[%clk 01:06:17]} {[%emt 00:00:59]} 16. Nh3 {[%clk 00:46:26]} {[%emt
00:01:20]} f4 {[%clk 01:04:37]} {[%emt 00:02:10]} 17. e5 {[%clk 00:45:19]}
{[%emt 00:01:37]} Nh5 {[%clk 01:03:25]} {[%emt 00:01:43]} 18. Nf2 {[%clk
00:43:37]} {[%emt 00:02:11]} Ng7 {[%clk 01:03:13]} {[%emt 00:00:42]} 19. Ng4
{[%emt 00:06:19]} Qh5 {[%clk 01:03:21]} {[%emt 00:00:20]} 20. g3 {[%clk
00:36:44]} {[%emt 00:01:36]} Nf5 {[%emt 00:08:28]} 21. Ne2 {[%clk 00:35:55]}
{[%emt 00:01:16]} fxg3 {[%clk 00:42:22]} {[%emt 00:13:35]} 22. hxg3 {[%clk
00:36:03]} {[%emt 00:00:22]} Qh3 {[%clk 00:41:52]} {[%emt 00:01:00]} 23. Nf2
{[%clk 00:34:15]} {[%emt 00:02:17]} Qh6 {[%clk 00:39:54]} {[%emt 00:02:28]} 24.
Kg2 {[%clk 00:33:52]} {[%emt 00:00:54]} Qg7 {[%clk 00:37:15]} {[%emt 00:03:08]}
25. Rh1 {[%clk 00:29:31]} {[%emt 00:04:51]} Be8 {[%clk 00:37:33]} {[%emt
00:00:12]} 26. a4 {[%clk 00:25:31]} {[%emt 00:04:31]} Bg6 {[%clk 00:36:04]}
{[%emt 00:01:58]} 27. b5 {[%clk 00:24:47]} {[%emt 00:01:14]} Qf7 {[%clk
00:35:13]} {[%emt 00:01:21]} 28. f4 {[%clk 00:24:19]} {[%emt 00:00:58]} gxf4
{[%clk 00:31:50]} {[%emt 00:03:53]} 29. Bxf4 {[%clk 00:24:21]} {[%emt
00:00:28]} Ne3+ {[%clk 00:31:39]} {[%emt 00:00:42]} 30. Bxe3 {[%clk 00:24:19]}
{[%emt 00:00:32]} Qf3+ {[%clk 00:31:58]} {[%emt 00:00:11]} 31. Kh3 {[%clk
00:22:36]} {[%emt 00:02:12]} Qxe3 {[%clk 00:27:47]} {[%emt 00:04:41]} 32. Bxg6
{[%clk 00:20:43]} {[%emt 00:02:23]} Rxf2 {[%emt 00:02:29]} 33. Bxh7+ {[%emt
00:01:27]} Kh8 {[%clk 00:26:35]} {[%emt 00:00:02]} 34. Qg6 {[%clk 00:17:38]}
{[%emt 00:02:19]} Rf5 {[%clk 00:23:12]} {[%emt 00:03:54]} 35. Raf1 {[%clk
00:11:28]} {[%emt 00:06:40]} Rg5 {[%clk 00:21:44]} {[%emt 00:01:57]} 36. Qc2
{[%clk 00:10:55]} {[%emt 00:01:04]} cxb5 {[%clk 00:15:05]} {[%emt 00:07:09]} 37.
Kg2 {[%emt 00:03:19]} Rf8 {[%emt 00:01:12]} 38. Bg8+ {[%clk 00:09:37]} 1-0

[ePGN "0.1;DGT LiveChess/2.2.5"]